bitfinex/quotes_SOLUSD_20240813
["timestamp","ask_amount","ask_price","bid_price","bid_amount"]
[1723550335997,47.43,145.92,145.84,17.141]
[1723550335998,6.8544,145.89,145.84,17.141]
[1723550336178,6.8544,145.89,145.85,6.8561]
[1723550336509,6.8555,145.87,145.84,17.141]
[1723550336810,6.8555,145.87,145.84,23.9978]
[1723550336994,6.8551,145.88,145.84,23.9978]
[1723550337809,6.8551,145.88,145.85,0.25098]
[1723550338300,6.8555,145.87,145.85,0.25098]
[1723550338626,6.8555,145.87,145.85,45.25098]
[1723550338810,54.2849,145.89,145.86,1.37012691]
[1723550339001,47.43,145.89,145.86,6.8557]
[1723550339206,47.43,145.89,145.85,17.1404]
[1723550339207,54.2845,145.89,145.85,23.9965]
[1723550339614,62.737,145.92,145.87,17.1378]
[1723550339819,6.8522,145.94,145.9,6.8538]
[1723550339995,6.8526,145.93,145.91,1.36954102]
[1723550340195,6.8521,145.94,145.92,0.25098]
[1723550340418,6.8521,145.94,145.92,0.12549]
[1723550340616,6.8521,145.94,145.92,0.37647]
[1723550340821,6.8526,145.93,145.92,0.37647]
[1723550341296,6.8522,145.94,145.92,0.37647]
[1723550341795,6.8526,145.93,145.92,0.50196]
[1723550342000,6.8526,145.93,145.92,0.12549]
[1723550342316,6.853,145.92,145.91,0.37647]
[1723550342689,6.853,145.92,145.91,0.12549]
[1723550343512,6.8536,145.91,145.88,0.12549]
[1723550343711,64.5416,145.93,145.88,45.50196]
[1723550343914,64.5416,145.93,145.86,17.1392]
[1723550344127,64.5416,145.93,145.83,17.1422]
[1723550344422,20.0,145.92,145.83,17.1422]
[1723550344601,20.0,145.92,145.85,17.1403]
[1723550344920,6.8531,145.92,145.88,6.8546]
[1723550345417,6.8535,145.91,145.89,45.50196]
[1723550345792,47.41,145.95,145.9,45.12549]
[1723550345993,6.8526,145.93,145.91,0.50196]
[1723550346188,47.41,145.95,145.92,0.12549]
[1723550346421,47.41,145.95,145.92,0.25098]
[1723550346592,47.41,145.95,145.92,0.12549]
[1723550346792,6.8526,145.93,145.92,0.12549]
[1723550347524,6.8528,145.93,145.89,6.97989]
[1723550347694,6.8528,145.93,145.9,45.37647]
[1723550348022,6.8524,145.94,145.91,0.12549]
[1723550348513,6.8524,145.94,145.92,0.12549]
[1723550348721,6.8511,145.96,145.92,7.22927]
[1723550348908,63.0897,145.98,145.95,6.97709]
[1723550348909,15.6797,145.98,145.95,6.97709]
[1723550349100,22.5299,145.98,145.96,0.94293658]
[1723550349299,22.5299,145.98,145.97,0.12549]
[1723550350097,6.8507,145.97,145.96,0.50196]
[1723550350297,6.8507,145.97,145.96,0.37647]
[1723550350496,6.8507,145.97,145.96,0.12549]
[1723550350892,15.6797,145.98,145.92,0.12549]
[1723550351117,6.8526,145.93,145.92,45.25098]
[1723550351316,6.8526,145.93,145.92,45.50196]
[1723550351626,6.8526,145.93,145.92,45.25098]
[1723550351996,6.8523,145.94,145.92,45.25098]
[1723550352301,6.8523,145.94,145.93,0.12549]
[1723550353015,6.8534,145.92,145.88,23.9913]
[1723550353400,47.41,145.93,145.85,17.1401]
[1723550353603,6.8544,145.9,145.86,6.8556]
[1723550354624,6.8544,145.9,145.87,0.5951079]
[1723550355215,47.41,145.93,145.87,17.1379]
[1723550355525,6.853,145.92,145.88,6.8546]
[1723550356522,6.8535,145.91,145.9,0.12549]
[1723550356719,6.8531,145.92,145.9,0.72402667]
[1723550356925,6.8531,145.92,145.91,0.12549]
[1723550357593,6.8531,145.92,145.91,0.37647]
[1723550358216,47.41,145.93,145.9,0.25098]
[1723550358217,6.8535,145.91,145.9,0.25098]
[1723550358396,6.8535,145.91,145.9,0.37647]
[1723550359902,64.5417,145.93,145.9,0.37647]
[1723550359903,6.8531,145.92,145.9,0.37647]
[1723550360105,47.41,145.93,145.91,0.12549]
[1723550360304,15.6797,145.98,145.92,0.12549]
[1723550360305,47.41,145.96,145.92,0.12549]
[1723550360519,6.8517,145.95,145.92,0.12549]
[1723550360722,6.8517,145.95,145.92,45.99470351]
[1723550361020,6.8517,145.95,145.94,0.12549]
[1723550362828,6.8514,145.96,145.94,0.12549]
[1723550363033,6.8509,145.97,145.94,0.12549]
[1723550363328,6.8503,145.98,145.94,51.97739]
[1723550363631,21.6737,146.03,145.96,0.12549]
[1723550363827,21.6737,146.03,145.96,0.25098]
[1723550364121,6.85,145.99,145.98,0.12549]
[1723550364343,6.85,145.99,145.98,0.25098]
[1723550364824,6.8502,145.98,145.97,0.25098]
[1723550365031,6.8502,145.98,145.97,0.50196]
[1723550365332,6.8496,146.0,145.98,0.12549]
[1723550365625,6.8496,146.0,145.98,0.25098]
[1723550365924,6.8497,145.99,145.98,0.25098]
[1723550366129,6.8497,145.99,145.98,0.50196]
[1723550366330,6.8494,146.0,145.98,0.50196]
[1723550366634,6.8497,145.99,145.98,0.50196]
[1723550367602,6.851,145.97,145.91,17.1333]
[1723550367898,6.8522,145.94,145.88,20.3719]
[1723550368116,6.8522,145.94,145.9,6.8539]
[1723550368320,6.8518,145.95,145.9,17.1348]
[1723550369045,39.48,145.97,145.9,23.9886]
[1723550369222,39.48,145.97,145.89,20.0]
[1723550369423,39.48,145.97,145.88,4.80214554]
[1723550369727,39.48,145.95,145.88,1.56684554]
[1723550369926,34.2453,146.01,145.88,1.56684554]
[1723550369927,39.48,145.93,145.88,1.56684554]
[1723550370141,6.8541,145.9,145.87,17.1375]
[1723550371125,6.8541,145.9,145.86,6.8558]
[1723550371325,6.8544,145.89,145.85,6.856]
[1723550371536,39.48,145.91,145.86,6.8557]
[1723550371537,6.854,145.9,145.86,6.8557]
[1723550371733,46.3337,145.91,145.87,6.8554]
[1723550372631,46.3337,145.91,145.88,45.50196]
[1723550372829,6.8544,145.9,145.89,0.12549]
[1723550374146,46.3336,145.91,145.89,0.12549]
[1723550374343,6.854,145.9,145.89,0.12549]
[1723550376546,6.854,145.9,145.88,45.37647]
[1723550376547,6.8544,145.89,145.88,45.50196]
[1723550379943,39.48,145.92,145.88,45.50196]
[1723550380145,20.0,145.91,145.88,45.50196]
[1723550380461,20.0,145.91,145.89,1.37004717]
[1723550380677,39.48,145.92,145.89,1.36979435]
[1723550380840,39.48,145.92,145.9,0.12549]
[1723550381030,39.48,145.92,145.89,0.12549]
[1723550382238,39.48,145.92,145.89,1.4952486]
[1723550382431,39.48,145.92,145.9,0.12549]
[1723550383055,39.48,145.92,145.89,0.25098]
[1723550384740,39.48,145.92,145.89,0.12549]
[1723550385867,31.63,145.91,145.89,0.12549]
[1723550386246,31.63,145.93,145.9,0.12549]
[1723550386448,20.0,145.92,145.9,0.25098]
[1723550386748,20.0,145.92,145.91,0.12549]
[1723550386948,22.4585,145.94,145.92,0.12549]
[1723550387249,31.63,145.97,145.92,0.37647]
[1723550387461,31.63,145.97,145.93,0.12549]
[1723550387760,31.63,145.95,145.93,0.12549]
[1723550389257,31.63,145.95,145.93,0.25098]
[1723550389438,31.63,145.95,145.94,0.12549]
[1723550389643,31.63,145.97,145.94,0.37647]
[1723550389866,20.0,145.96,145.95,0.12549]
[1723550390064,31.63,145.97,145.95,0.12549]
[1723550390256,31.63,145.97,145.95,0.37647]
[1723550390682,22.8352,146.06,145.96,0.12549]
[1723550390855,54.4652,146.06,145.96,1.74482245]
[1723550391060,22.8352,146.06,145.97,0.12549]
[1723550391257,31.63,146.09,145.98,0.12549]
[1723550391464,31.63,146.09,145.98,33.37499938]
[1723550391685,22.8352,146.1,145.99,20.12549]
[1723550391860,22.8352,146.1,146.0,45.37647]
[1723550392181,22.8352,146.1,146.02,0.12549]
[1723550392391,22.8352,146.1,146.02,1.7450482]
[1723550392685,22.8352,146.1,146.03,0.12549]
[1723550392860,22.8352,146.1,146.05,0.12549]
[1723550393050,16.1984,146.1,146.05,0.12549]
[1723550393256,16.1984,146.1,146.05,1.6194163]
[1723550393451,16.1984,146.1,146.07,0.12549]
[1723550393753,16.1984,146.1,146.07,1.61987536]
[1723550393953,16.1984,146.1,146.07,0.12549]
[1723550396479,39.43,146.12,146.07,0.25098]
[1723550396680,45.9867,146.14,146.08,0.25098]
[1723550396984,45.9867,146.14,146.09,0.37647]
[1723550398895,45.9867,146.14,146.1,0.12549]
[1723550399069,45.9867,146.14,146.1,0.25098]
[1723550399392,45.9867,146.14,146.11,0.12549]
[1723550399581,45.9867,146.14,146.1,0.12549]
[1723550399769,6.5567,146.14,146.1,0.12549]
[1723550399969,15.0342,146.15,146.1,0.12549]
[1723550401191,45.9657,146.18,146.1,0.12549]
[1723550401374,6.5357,146.18,146.1,0.12549]
[1723550401574,15.7248,146.2,146.1,0.12549]
[1723550401914,45.9802,146.23,146.11,0.12549]
[1723550402093,39.43,146.21,146.11,0.37647]
[1723550402271,39.43,146.21,146.12,0.12549]
[1723550402470,39.43,146.21,146.12,0.37647]
[1723550402678,39.43,146.19,146.13,0.12549]
[1723550402863,39.43,146.19,146.13,0.37647]
[1723550403064,39.43,146.19,146.13,0.12549]
[1723550403684,39.43,146.21,146.13,1.49320709]
[1723550403896,39.43,146.21,146.14,0.12549]
[1723550404204,45.9802,146.23,146.14,1.49299215]
[1723550404377,20.0,146.22,146.14,1.61848215]
[1723550404574,20.0,146.22,146.15,0.12549]
[1723550404795,20.0,146.22,146.15,1.74457452]
[1723550405104,20.0,146.22,146.16,0.12549]
[1723550405287,20.0,146.22,146.17,0.12549]
[1723550405774,20.0,146.22,146.17,0.37647]
[1723550405975,20.0,146.22,146.18,0.12549]
[1723550406191,20.0,146.22,146.18,0.25098]
[1723550406391,15.9178,146.24,146.19,0.25098]
[1723550406597,15.9178,146.24,146.2,0.25098]
[1723550406802,39.43,146.23,146.18,0.25098]
[1723550407095,6.4217,146.27,146.19,0.12549]
[1723550407308,6.4217,146.27,146.19,0.37647]
[1723550407667,6.4217,146.27,146.2,0.12549]
[1723550407987,6.4217,146.27,146.21,0.12549]
[1723550408197,6.4217,146.27,146.21,0.25098]
[1723550408198,39.43,146.26,146.21,0.25098]
[1723550408397,39.43,146.26,146.21,0.37647]
[1723550409699,39.43,146.26,146.2,0.12549]
[1723550409700,39.43,146.24,146.13,3.2353]
[1723550409911,39.43,146.24,146.13,23.2353]
[1723550410077,39.43,146.24,146.13,3.2353]
[1723550410281,39.43,146.22,146.13,3.2353]
[1723550410492,39.43,146.24,146.13,4.79946498]
[1723550410800,39.43,146.24,146.14,1.56405794]
[1723550411374,6.4217,146.27,146.15,0.25098]
[1723550411375,39.43,146.26,146.15,0.25098]
[1723550411575,20.0,146.25,146.16,0.25098]
[1723550411776,39.43,146.26,146.18,0.12549]
[1723550411976,6.4217,146.27,146.18,0.25098]
[1723550412404,6.4217,146.27,146.2,0.12549]
[1723550412594,6.4217,146.27,146.2,0.25098]
[1723550412797,6.4217,146.27,146.21,0.12549]
[1723550412976,39.43,146.26,146.22,0.12549]
[1723550413185,39.43,146.26,146.19,0.12549]
[1723550413620,39.43,146.26,146.14,21.56405794]
[1723550413796,39.43,146.26,146.17,6.8412]
[1723550413797,6.8395,146.21,146.17,6.8412]
[1723550414203,6.8399,146.2,146.16,23.9458]
[1723550414514,6.8404,146.19,146.15,6.8421]
[1723550414723,6.8409,146.18,146.14,8.40665794]
[1723550414898,6.8405,146.19,146.15,6.8422]
[1723550415102,6.8408,146.18,146.14,8.40655794]
[1723550415291,6.8412,146.18,146.14,8.40645794]
[1723550415491,6.8413,146.17,146.14,1.56405794]
[1723550415711,34.1909,146.24,146.14,1.56405794]
[1723550415712,17.1013,146.19,146.14,1.56405794]
[1723550415920,39.43,146.18,146.09,3.2353]
[1723550416093,6.8424,146.15,146.1,6.8445]
[1723550416294,39.43,146.18,146.11,17.1098]
[1723550416786,6.8421,146.16,146.12,6.8436]
[1723550417010,6.8421,146.16,146.11,23.9537]
[1723550417215,6.8421,146.16,146.12,6.8436]
[1723550417415,6.8423,146.15,146.11,23.9538]
[1723550417592,6.8419,146.16,146.12,6.8436]
[1723550417793,6.8423,146.15,146.11,23.9538]
[1723550417992,39.43,146.18,146.12,6.96899]
[1723550417993,6.8418,146.16,146.12,6.96899]
[1723550418199,6.8418,146.16,146.14,0.12549]
[1723550418398,6.8422,146.15,146.14,0.12549]
[1723550418613,39.43,146.18,146.09,6.845]
[1723550418614,6.8435,146.13,146.09,6.845]
[1723550418998,6.8437,146.12,146.08,23.959]
[1723550419201,6.8437,146.12,146.05,3.2353]
[1723550419202,6.2194,146.19,146.07,6.846]
[1723550419398,39.43,146.15,146.05,3.2353]
[1723550419731,17.1094,146.12,146.03,17.1189]
[1723550419903,17.1094,146.12,146.05,6.8469]
[1723550419904,6.8451,146.09,146.05,6.8469]
[1723550420597,6.8449,146.1,146.06,6.8464]
[1723550420923,6.2194,146.19,146.05,34.2335]
[1723550421218,6.2194,146.19,146.08,39.43]
[1723550421421,15.2184,146.2,146.14,6.8425]
[1723550421599,6.8412,146.18,146.14,6.8425]
[1723550421800,6.8412,146.18,146.15,45.50196]
[1723550422025,15.2184,146.2,146.15,0.50196]
[1723550422026,6.8415,146.17,146.15,0.50196]
[1723550422209,6.841,146.18,146.15,0.50196]
[1723550422603,6.8418,146.16,146.15,0.50196]
[1723550423322,6.8415,146.17,146.15,0.50196]
[1723550423704,6.8418,146.16,146.15,0.50196]
[1723550424126,15.0968,146.25,146.15,0.50196]
[1723550424452,6.8385,146.24,146.15,0.50196]
[1723550424600,6.8386,146.23,146.21,0.12549]
[1723550424802,15.0968,146.25,146.2,45.37647]
[1723550425024,6.8394,146.21,146.2,0.50196]
[1723550425232,54.5268,146.25,146.21,0.12549]
[1723550425534,6.839,146.22,146.21,0.12549]
[1723550425705,6.8394,146.21,146.2,0.50196]
[1723550425911,6.8399,146.2,146.19,0.12549]
[1723550426120,6.8399,146.2,146.17,17.1024]
[1723550426319,54.5268,146.25,146.11,1.63]
[1723550426320,6.8404,146.19,146.11,1.63]
[1723550426502,6.8415,146.17,146.11,1.63]
[1723550426709,6.8415,146.17,146.12,6.8433]
[1723550426911,6.8415,146.17,146.13,51.8431]
[1723550427131,6.8415,146.17,146.12,6.8435]
[1723550427317,6.8415,146.17,146.11,1.63]
[1723550427318,6.8415,146.17,146.13,51.8431]
[1723550427626,6.8424,146.15,146.1,17.1113]
[1723550427932,54.5268,146.25,146.11,39.43]
[1723550428110,20.0,146.24,146.17,6.841]
[1723550428738,20.0,146.24,146.19,0.12549]
[1723550428953,20.0,146.24,146.19,0.37647]
[1723550429261,6.8386,146.23,146.19,7.21667]
[1723550429434,6.839,146.22,146.2,0.12549]
[1723550429764,6.8394,146.21,146.2,0.12549]
[1723550430358,54.5268,146.25,146.2,0.12549]
[1723550430563,6.8388,146.23,146.2,0.12549]
[1723550430747,6.8392,146.22,146.2,0.12549]
[1723550431562,6.8386,146.23,146.2,0.12549]
[1723550431749,6.8386,146.23,146.21,0.12549]
[1723550432062,21.9347,146.25,146.21,7.21557]
[1723550432262,6.8386,146.23,146.22,0.12549]
[1723550432463,6.8386,146.23,146.22,0.50196]
[1723550432671,6.8382,146.24,146.22,0.50196]
[1723550432849,6.8372,146.26,146.23,0.12549]
[1723550433165,6.8376,146.25,146.23,45.37647]
[1723550433372,6.8376,146.25,146.24,0.12549]
[1723550433662,6.837,146.27,146.25,0.12549]
[1723550433861,6.8371,146.26,146.25,0.37647]
[1723550434239,6.8368,146.27,146.25,0.50196]
[1723550434444,6.8371,146.26,146.25,0.50196]
[1723550434759,15.0069,146.34,146.25,39.93196]
[1723550434935,6.8355,146.3,146.26,51.96259]
[1723550435136,6.8357,146.29,146.27,0.37647]
[1723550435334,6.8357,146.29,146.28,0.12549]
[1723550435736,6.8371,146.26,146.22,6.96439]
[1723550436068,6.8374,146.26,146.23,0.25098]
[1723550436445,6.8374,146.26,146.24,0.12549]
[1723550436760,6.8374,146.26,146.22,7.08998]
[1723550436956,56.5178,146.31,146.23,6.8385]
[1723550436957,6.8367,146.27,146.23,6.8385]
[1723550437165,56.5178,146.31,146.24,0.25098]
[1723550437360,20.0,146.3,146.25,0.25098]
[1723550437553,6.8374,146.26,146.23,0.12549]
[1723550437768,17.0895,146.29,146.23,45.25098]
[1723550438062,6.8377,146.25,146.24,0.12549]
[1723550438240,17.0924,146.27,146.22,0.12549]
[1723550438440,6.8384,146.24,146.22,0.25098]
[1723550438772,41.13947309,146.29,146.18,17.1013]
[1723550438968,15.6498,146.25,146.15,34.2097]
[1723550439271,22.4875,146.25,146.2,6.8396]
[1723550439450,6.8374,146.26,146.21,17.0984]
[1723550439652,6.8376,146.25,146.21,23.9377]
[1723550439959,6.8389,146.23,146.18,23.9417]
[1723550440262,17.092,146.27,146.19,51.8403]
[1723550440464,6.8382,146.24,146.2,6.8398]
[1723550440662,6.8382,146.24,146.21,45.0]
[1723550441240,15.6498,146.29,146.21,84.43]
[1723550441554,6.8363,146.28,146.24,6.8376]
[1723550441752,6.8366,146.27,146.26,0.12549]
[1723550442065,6.8362,146.28,146.26,0.12549]
[1723550442969,6.8366,146.27,146.26,0.12549]
[1723550443674,15.6498,146.29,146.26,0.12549]
[1723550443856,6.8361,146.29,146.26,0.12549]
[1723550444056,15.432,146.33,146.26,17.21789]
[1723550444362,17.0807,146.37,146.28,17.21549]
[1723550444575,6.8337,146.34,146.3,6.96059]
[1723550444744,21.9776,146.38,146.31,45.50196]
[1723550444949,15.432,146.38,146.31,8.70266272]
[1723550445143,15.432,146.38,146.31,53.70266272]
[1723550445365,6.8335,146.34,146.31,45.50196]
[1723550445643,6.834,146.33,146.31,45.37647]
[1723550445843,7.6623953,146.32,146.31,45.12549]
[1723550446078,7.6623953,146.32,146.31,0.12549]
[1723550446280,7.6623953,146.32,146.3,45.0]
[1723550446460,7.6623953,146.32,146.29,45.12549]
[1723550446649,7.6623953,146.32,146.3,0.12549]
[1723550447176,6.8348,146.31,146.27,23.9275]
[1723550447379,0.8280953,146.32,146.31,6.8348]
[1723550447744,6.2502,146.42,146.3,56.5175]
[1723550447745,6.2502,146.42,146.36,6.8322]
[1723550447950,6.8309,146.4,146.36,6.8322]
[1723550448249,6.8309,146.4,146.35,23.9145]
[1723550448546,6.8311,146.39,146.36,45.0]
[1723550448753,6.8315,146.38,146.34,6.833]
[1723550448953,6.8313,146.39,146.35,52.08378]
[1723550449151,6.8306,146.4,146.36,6.8324]
[1723550449452,6.8306,146.4,146.35,52.08378]
[1723550449770,23.3247,146.42,146.36,0.12549]
[1723550449771,6.2502,146.42,146.36,0.12549]
[1723550449952,6.8313,146.39,146.36,0.25098]
[1723550450148,6.8315,146.38,146.35,45.25098]
[1723550450357,6.2502,146.42,146.36,0.25098]
[1723550450681,6.8312,146.39,146.37,0.12549]
[1723550451058,6.8312,146.39,146.35,51.95809]
[1723550451059,6.832,146.37,146.35,45.12549]
[1723550451378,6.8317,146.38,146.35,0.12549]
[1723550451589,6.8321,146.37,146.35,0.12549]
[1723550451885,6.8324,146.36,146.32,6.8342]
[1723550452190,6.8324,146.36,146.33,0.12549]
[1723550452363,6.8324,146.36,146.32,52.21067]
[1723550452567,17.0756,146.41,146.33,17.0843]
[1723550452759,17.0756,146.41,146.34,45.37647]
[1723550453071,17.0756,146.41,146.34,0.25098]
[1723550453280,6.8327,146.36,146.34,0.12549]
[1723550453485,6.8327,146.36,146.33,0.50196]
[1723550454160,17.0781,146.39,146.27,34.1832]
[1723550454368,20.0,146.38,146.26,39.43]
[1723550454559,6.8335,146.34,146.3,6.8352]
[1723550455077,6.8338,146.33,146.29,23.9246]
[1723550455588,6.8343,146.32,146.29,17.0891]
[1723550455884,6.833,146.35,146.31,6.8347]
[1723550456054,6.8325,146.36,146.32,6.8341]
[1723550456587,6.833,146.35,146.31,23.9211]
[1723550456785,6.8335,146.34,146.32,0.12549]
[1723550457082,6.8334,146.34,146.32,0.50196]
[1723550457281,6.8334,146.34,146.32,0.12549]
[1723550457487,79.8305,146.42,146.29,6.8355]
[1723550457488,6.8338,146.33,146.29,6.8355]
[1723550457674,56.5075,146.4,146.3,17.21349]
[1723550457987,6.8332,146.35,146.31,6.8344]
[1723550458167,6.8332,146.35,146.32,6.95979]
[1723550458379,6.8332,146.35,146.33,0.12549]
[1723550458775,6.8332,146.35,146.33,0.25098]
[1723550458962,6.832,146.37,146.34,0.12549]
[1723550459560,6.8325,146.36,146.34,0.12549]
[1723550459758,6.8332,146.35,146.33,0.25098]
[1723550459989,6.8332,146.35,146.34,0.12549]
[1723550460360,6.8335,146.34,146.3,6.8351]
[1723550460892,6.8338,146.34,146.3,6.8351]
[1723550461068,6.8346,146.32,146.26,39.43]
[1723550461276,6.8349,146.31,146.28,17.0897]
[1723550461678,6.8349,146.31,146.27,6.8363]
[1723550462008,6.2645,146.34,146.29,17.0888]
[1723550462377,6.8341,146.33,146.29,23.9244]
[1723550462580,13.0982,146.34,146.3,6.8352]
[1723550462977,6.5263,146.38,146.31,17.33738]
[1723550463297,6.8321,146.37,146.33,6.8337]
[1723550463493,6.8323,146.37,146.34,0.12549]
[1723550463787,6.5263,146.38,146.34,0.12549]
[1723550463993,13.3581,146.38,146.35,0.12549]
[1723550464162,13.3581,146.38,146.35,0.37647]
[1723550464564,6.8313,146.39,146.35,7.20927]
[1723550464888,46.2647,146.46,146.37,0.12549]
[1723550464889,16.4254,146.46,146.37,0.12549]
[1723550465190,6.829,146.44,146.4,0.12549]
[1723550465386,6.829,146.44,146.4,0.50196]
[1723550465575,6.8292,146.43,146.4,0.50196]
[1723550465782,6.8288,146.44,146.4,0.50196]
[1723550465982,16.4254,146.46,146.42,6.8295]
[1723550466187,6.8287,146.45,146.41,17.0748]
[1723550466400,6.8287,146.45,146.4,7.33236]
[1723550466401,0.8280953,146.47,146.44,17.0718]
[1723550466697,0.8280953,146.47,146.45,0.25098]
[1723550467699,0.8280953,146.47,146.46,0.12549]
[1723550467909,0.8280953,146.47,146.45,0.25098]
[1723550468286,0.8280953,146.47,146.46,0.12549]
[1723550468494,0.8280953,146.47,146.46,7.07878]
[1723550468804,0.8280953,146.47,146.46,52.32976]
[1723550469007,0.8280953,146.47,146.46,0.37647]
[1723550469183,40.8280953,146.61,146.46,0.37647]
[1723550469184,7.13728943,146.58,146.48,0.12549]
[1723550469387,0.8280953,146.61,146.48,0.12549]
[1723550469577,6.8236,146.55,146.5,6.95129]
[1723550469774,17.0535,146.6,146.51,0.37647]
[1723550470092,17.0535,146.6,146.47,45.12549]
[1723550470093,6.825,146.52,146.47,51.8272]
[1723550470295,6.8249,146.53,146.47,44.87647]
[1723550470477,17.0562,146.58,146.47,44.87647]
[1723550470478,6.8241,146.54,146.49,6.8263]
[1723550470683,39.43,146.59,146.51,6.8253]
[1723550470887,39.43,146.59,146.52,0.12549]
[1723550471090,56.485,146.59,146.5,17.18949]
[1723550471296,56.485,146.59,146.5,0.12549]
[1723550471495,6.8244,146.54,146.5,0.12549]
[1723550471701,6.0835,146.54,146.47,17.068]
[1723550471912,6.8258,146.51,146.47,23.8953]
[1723550472115,6.8258,146.51,146.47,17.068]
[1723550472415,61.9511,146.54,146.4,34.1519]
[1723550472709,37.062,146.53,146.43,6.829]
[1723550472903,6.64566357,146.49,146.44,6.8286]
[1723550473085,6.8259,146.5,146.45,6.8282]
[1723550473693,37.062,146.53,146.43,17.0723]
[1723550473907,6.8272,146.48,146.43,23.9011]
[1723550474108,6.8279,146.46,146.4,52.78918024]
[1723550474320,17.0646,146.51,146.41,6.83]
[1723550474490,17.0665,146.49,146.4,23.9065]
[1723550474807,6.8279,146.46,146.41,8.19556616]
[1723550474986,6.8283,146.45,146.41,8.19576616]
[1723550475306,6.8279,146.46,146.42,6.8295]
[1723550475505,6.8279,146.46,146.37,39.43]
[1723550475506,17.0689,146.47,146.39,6.8309]
[1723550475700,6.8292,146.43,146.39,6.8309]
[1723550476008,6.8288,146.44,146.39,6.8309]
[1723550476204,6.577,146.46,146.38,17.0782]
[1723550476205,6.8293,146.43,146.38,23.9096]
[1723550476410,6.8297,146.42,146.38,23.9096]
[1723550476598,15.5069,146.44,146.35,17.0819]
[1723550476599,32.5791,146.44,146.35,17.0819]
[1723550476801,6.8315,146.39,146.35,17.0819]
[1723550477032,6.8315,146.39,146.31,76.8379]
[1723550477033,17.0749,146.42,146.32,17.0851]
[1723550477198,17.0749,146.42,146.33,6.8337]
[1723550477388,6.8316,146.38,146.33,6.8337]
[1723550477588,15.5069,146.44,146.37,6.8316]
[1723550477795,6.8304,146.41,146.36,23.913]
[1723550478298,6.8306,146.4,146.36,23.913]
[1723550478505,6.8312,146.39,146.34,6.8329]
[1723550478691,15.5069,146.44,146.33,56.5139]
[1723550478692,6.8315,146.38,146.33,17.0839]
[1723550478909,17.0757,146.41,146.34,45.0]
[1723550479219,6.8316,146.38,146.33,6.8335]
[1723550479395,6.832,146.37,146.32,23.9194]
[1723550479594,6.8325,146.36,146.32,23.9194]
[1723550480017,17.0781,146.39,146.29,17.0889]
[1723550480215,17.0747,146.42,146.34,17.0831]
[1723550480521,6.833,146.35,146.31,17.0864]
[1723550480825,23.1285,146.37,146.29,6.8356]
[1723550481022,23.1285,146.37,146.29,7.14274822]
[1723550481192,6.833,146.35,146.3,6.8349]
[1723550481704,6.8334,146.34,146.3,6.8349]
[1723550482120,6.833,146.35,146.3,6.8349]
[1723550482294,6.833,146.35,146.3,17.0877]
[1723550482499,6.8336,146.34,146.31,0.12549]
[1723550482894,6.833,146.35,146.31,0.12549]
[1723550483095,6.833,146.35,146.31,6.96009]
[1723550483300,6.8326,146.36,146.31,6.96009]
[1723550483524,6.833,146.35,146.31,0.12549]
[1723550483725,6.0485,146.37,146.31,0.12549]
[1723550484020,6.833,146.35,146.31,0.12549]
[1723550485321,6.0485,146.37,146.31,0.12549]